[Event "January 2 Early 2024"]
[Site "https://www.chess.com"]
[Date "2024.01.02"]
[Round "7"]
[White "Paravyan, David"]
[Black "Kovalev, Vladislav"]
[Result "1/2-1/2"]
[Board "8"]
[TimeControl "180+1"]
[WhiteFideId "4194985"]
[BlackFideId "13504398"]
[WhiteElo "3100"]
[BlackElo "2943"]
[WhiteTeam "FID"]
[BlackTeam "FID"]
[WhiteClock "0:00:09"]
[BlackClock "0:00:08"]

1. e4 {[%clk 0:03:00]}  e5 {[%clk 0:03:00]} 2. Nf3 {[%clk 0:03:00]}  Nc6 {[%clk 0:03:00]} 3. Bc4 {[%clk 0:03:00]}  Nf6 {[%clk 0:03:00]} 4. d3 {[%clk 0:03:00]}  Bc5 {[%clk 0:03:00]} 5. Nc3 {[%clk 0:03:00]}  h6 {[%clk 0:02:58]} 6. h3 {[%clk 0:02:57]}  d6 {[%clk 0:02:58]} 7. Na4 {[%clk 0:02:56]}  Bb6 {[%clk 0:02:54]} 8. c3 {[%clk 0:02:57]}  O-O {[%clk 0:02:38]} 9. O-O {[%clk 0:02:56]}  Na5 {[%clk 0:02:31]} 10. Bb3 {[%clk 0:02:53]}  Nxb3 {[%clk 0:02:31]} 11. axb3 {[%clk 0:02:54]}  Be6 {[%clk 0:02:28]} 12. b4 {[%clk 0:02:48]}  c6 {[%clk 0:02:23]} 13. Nxb6 {[%clk 0:02:47]}  axb6 {[%clk 0:02:24]} 14. Be3 {[%clk 0:02:45]}  b5 {[%clk 0:02:21]} 15. Qc2 {[%clk 0:02:33]}  Qe7 {[%clk 0:02:14]} 16. Rfe1 {[%clk 0:02:31]}  Nh5 {[%clk 0:01:37]} 17. d4 {[%clk 0:02:19]}  Qf6 {[%clk 0:01:37]} 18. Nh2 {[%clk 0:02:06]}  Rxa1 {[%clk 0:01:18]} 19. Rxa1 {[%clk 0:02:05]}  Qg6 {[%clk 0:01:17]} 20. Kh1 {[%clk 0:01:59]}  exd4 {[%clk 0:01:12]} 21. cxd4 {[%clk 0:01:57]}  d5 {[%clk 0:01:08]} 22. Nf3 {[%clk 0:01:50]}  Qxe4 {[%clk 0:00:59]} 23. Qxe4 {[%clk 0:01:36]}  dxe4 {[%clk 0:01:00]} 24. Ne5 {[%clk 0:01:37]}  Nf6 {[%clk 0:00:44]} 25. Ra7 {[%clk 0:01:34]}  Bc8 {[%clk 0:00:42]} 26. Bd2 {[%clk 0:01:25]}  Nd5 {[%clk 0:00:41]} 27. Kg1 {[%clk 0:01:23]}  g5 {[%clk 0:00:39]} 28. Kf1 {[%clk 0:01:20]}  f6 {[%clk 0:00:34]} 29. Ng4 {[%clk 0:01:18]}  Bxg4 {[%clk 0:00:29]} 30. hxg4 {[%clk 0:01:19]}  Rf7 {[%clk 0:00:30]} 31. Ke2 {[%clk 0:01:19]}  Kg7 {[%clk 0:00:30]} 32. Ra8 {[%clk 0:01:11]}  Re7 {[%clk 0:00:29]} 33. Rb8 {[%clk 0:01:10]}  Kg6 {[%clk 0:00:26]} 34. g3 {[%clk 0:01:09]}  h5 {[%clk 0:00:25]} 35. gxh5+ {[%clk 0:01:07]}  Kxh5 {[%clk 0:00:25]} 36. f3 {[%clk 0:01:07]}  exf3+ {[%clk 0:00:25]} 37. Kxf3 {[%clk 0:01:08]}  Kg6 {[%clk 0:00:16]} 38. g4 {[%clk 0:01:08]}  Rh7 {[%clk 0:00:13]} 39. Kg3 {[%clk 0:01:05]}  Rd7 {[%clk 0:00:13]} 40. Kf3 {[%clk 0:01:05]}  Kf7 {[%clk 0:00:13]} 41. Ke4 {[%clk 0:01:04]}  Nb6 {[%clk 0:00:12]} 42. Bc3 {[%clk 0:01:02]}  Ke6 {[%clk 0:00:10]} 43. Rf8 {[%clk 0:00:59]}  Re7 {[%clk 0:00:11]} 44. Rb8 {[%clk 0:00:55]}  Nd5 {[%clk 0:00:11]} 45. Bd2 {[%clk 0:00:53]}  Kd6+ {[%clk 0:00:09]} 46. Kf5 {[%clk 0:00:51]}  Re2 {[%clk 0:00:10]} 47. Bc3 {[%clk 0:00:52]}  Rf2+ {[%clk 0:00:10]} 48. Kg6 {[%clk 0:00:52]}  Kc7 {[%clk 0:00:09]} 49. Rf8 {[%clk 0:00:52]}  Rf4 {[%clk 0:00:10]} 50. Kh5 {[%clk 0:00:47]}  Rf3 {[%clk 0:00:08]} 51. Bd2 {[%clk 0:00:43]}  Kb6 {[%clk 0:00:06]} 52. Kg6 {[%clk 0:00:38]}  Rd3 {[%clk 0:00:06]} 53. Be1 {[%clk 0:00:37]}  Rb3 {[%clk 0:00:05]} 54. Bc3 {[%clk 0:00:32]}  Kc7 {[%clk 0:00:03]} 55. Rf7+ {[%clk 0:00:32]}  Kd6 {[%clk 0:00:03]} 56. Rxb7 {[%clk 0:00:31]}  Nxc3 {[%clk 0:00:04]} 57. bxc3 {[%clk 0:00:32]}  Rxc3 {[%clk 0:00:05]} 58. Kxf6 {[%clk 0:00:33]}  Rc4 {[%clk 0:00:05]} 59. Kxg5 {[%clk 0:00:24]}  Rxb4 {[%clk 0:00:06]} 60. Kf5 {[%clk 0:00:18]}  Rxd4 {[%clk 0:00:06]} 61. g5 {[%clk 0:00:19]}  Rd1 {[%clk 0:00:06]} 62. g6 {[%clk 0:00:19]}  Rf1+ {[%clk 0:00:06]} 63. Kg5 {[%clk 0:00:20]}  Rg1+ {[%clk 0:00:07]} 64. Kf6 {[%clk 0:00:20]}  Kc5 {[%clk 0:00:06]} 65. g7 {[%clk 0:00:21]}  b4 {[%clk 0:00:07]} 66. Re7 {[%clk 0:00:20]}  Kd4 {[%clk 0:00:06]} 67. Re1 {[%clk 0:00:14]}  Rxg7 {[%clk 0:00:04]} 68. Kxg7 {[%clk 0:00:15]}  c5 {[%clk 0:00:05]} 69. Rd1+ {[%clk 0:00:14]}  Ke4 {[%clk 0:00:02]} 70. Rc1 {[%clk 0:00:13]}  Kd4 {[%clk 0:00:03]} 71. Rd1+ {[%clk 0:00:13]}  Kc4 {[%clk 0:00:04]} 72. Rc1+ {[%clk 0:00:14]}  Kb5 {[%clk 0:00:05]} 73. Kf6 {[%clk 0:00:14]}  b3 {[%clk 0:00:05]} 74. Ke5 {[%clk 0:00:14]}  Kb4 {[%clk 0:00:06]} 75. Kd5 {[%clk 0:00:10]}  b2 {[%clk 0:00:06]} 76. Rb1 {[%clk 0:00:07]}  Kb3 {[%clk 0:00:06]} 77. Kxc5 {[%clk 0:00:08]}  Kc2 {[%clk 0:00:07]} 78. Rxb2+ {[%clk 0:00:09]}  Kxb2 {[%clk 0:00:08]} 1/2-1/2

[Event "January 2 Early 2024"]
[Site "https://www.chess.com"]
[Date "2024.01.02"]
[Round "7"]
[White "Ibarra Jerez, Jose Carlos"]
[Black "Duda, Jan-Krzysztof"]
[Result "0-1"]
[Board "10"]
[TimeControl "180+1"]
[WhiteFideId "2226332"]
[BlackFideId "1170546"]
[WhiteElo "2921"]
[BlackElo "3039"]
[WhiteTeam "ESP"]
[BlackTeam "POL"]
[WhiteClock "0:00:04"]
[BlackClock "0:01:02"]

1. e4 {[%clk 0:03:00]}  c5 {[%clk 0:02:58]} 2. Nf3 {[%clk 0:03:00]}  d6 {[%clk 0:02:58]} 3. c3 {[%clk 0:03:00]}  Nf6 {[%clk 0:02:58]} 4. h3 {[%clk 0:03:01]}  g6 {[%clk 0:02:50]} 5. Bd3 {[%clk 0:03:01]}  Bg7 {[%clk 0:02:51]} 6. Bc2 {[%clk 0:03:02]}  e5 {[%clk 0:02:49]} 7. d4 {[%clk 0:03:02]}  exd4 {[%clk 0:02:48]} 8. cxd4 {[%clk 0:03:03]}  cxd4 {[%clk 0:02:49]} 9. Nxd4 {[%clk 0:03:03]}  O-O {[%clk 0:02:50]} 10. O-O {[%clk 0:03:04]}  Re8 {[%clk 0:02:44]} 11. Nc3 {[%clk 0:03:04]}  d5 {[%clk 0:02:41]} 12. Bg5 {[%clk 0:02:55]}  dxe4 {[%clk 0:02:05]} 13. Ndb5 {[%clk 0:02:42]}  Qb6 {[%clk 0:01:43]} 14. Bxf6 {[%clk 0:02:41]}  Qxf6 {[%clk 0:01:32]} 15. Nc7 {[%clk 0:02:38]}  Rd8 {[%clk 0:01:30]} 16. Qe2 {[%clk 0:02:04]}  Nc6 {[%clk 0:01:29]} 17. Nxe4 {[%clk 0:01:51]}  Qxb2 {[%clk 0:01:11]} 18. Nxa8 {[%clk 0:01:50]}  Nd4 {[%clk 0:01:11]} 19. Qd3 {[%clk 0:01:33]}  Bf5 {[%clk 0:01:05]} 20. Nc7 {[%clk 0:01:26]}  Qxc2 {[%clk 0:01:03]} 21. Qxc2 {[%clk 0:00:58]}  Nxc2 {[%clk 0:01:04]} 22. Rad1 {[%clk 0:00:53]}  Rxd1 {[%clk 0:01:04]} 23. Rxd1 {[%clk 0:00:53]}  Bxe4 {[%clk 0:01:05]} 24. Rd8+ {[%clk 0:00:51]}  Bf8 {[%clk 0:01:05]} 25. Ne8 {[%clk 0:00:48]}  Bc6 {[%clk 0:01:04]} 26. Nf6+ {[%clk 0:00:08]}  Kg7 {[%clk 0:01:04]} 27. Nxh7 {[%clk 0:00:09]}  Be7 {[%clk 0:01:03]} 28. Rd2 {[%clk 0:00:09]}  Nb4 {[%clk 0:01:02]} 29. Re2 {[%clk 0:00:04]}  Nd5 {[%clk 0:01:02]} 0-1

[Event "January 2 Early 2024"]
[Site "https://www.chess.com"]
[Date "2024.01.02"]
[Round "7"]
[White "Xiong, Jeffery"]
[Black "Vasquez Schroeder, Rodrigo"]
[Result "0-1"]
[Board "11"]
[TimeControl "180+1"]
[WhiteFideId "2047640"]
[BlackFideId "3400042"]
[WhiteElo "3036"]
[BlackElo "2919"]
[WhiteTeam "USA"]
[BlackTeam "CHI"]
[WhiteClock "0:02:28"]
[BlackClock "0:01:33"]

1. d4 {[%clk 0:03:00]}  Nf6 {[%clk 0:02:59]} 2. c4 {[%clk 0:03:01]}  e6 {[%clk 0:03:00]} 3. Nc3 {[%clk 0:03:01]}  Bb4 {[%clk 0:02:59]} 4. Nf3 {[%clk 0:03:01]}  O-O {[%clk 0:02:57]} 5. Bg5 {[%clk 0:03:01]}  h6 {[%clk 0:02:55]} 6. Bh4 {[%clk 0:03:01]}  c5 {[%clk 0:02:55]} 7. e3 {[%clk 0:02:48]}  cxd4 {[%clk 0:02:46]} 8. exd4 {[%clk 0:02:48]}  d5 {[%clk 0:02:47]} 9. Rc1 {[%clk 0:02:46]}  dxc4 {[%clk 0:02:31]} 10. Bxc4 {[%clk 0:02:47]}  Be7 {[%clk 0:02:31]} 11. O-O {[%clk 0:02:47]}  Nc6 {[%clk 0:02:28]} 12. Re1 {[%clk 0:02:47]}  Nh5 {[%clk 0:02:27]} 13. Bxe7 {[%clk 0:02:45]}  Nxe7 {[%clk 0:02:27]} 14. d5 {[%clk 0:02:45]}  exd5 {[%clk 0:02:24]} 15. Nxd5 {[%clk 0:02:46]}  Nxd5 {[%clk 0:02:24]} 16. Qxd5 {[%clk 0:02:45]}  Qxd5 {[%clk 0:02:22]} 17. Bxd5 {[%clk 0:02:46]}  Nf6 {[%clk 0:02:22]} 18. Bb3 {[%clk 0:02:46]}  Bd7 {[%clk 0:02:02]} 19. Rc7 {[%clk 0:02:43]}  Bc6 {[%clk 0:01:55]} 20. Ree7 {[%clk 0:02:42]}  Nd5 {[%clk 0:01:50]} 21. Bc4 {[%clk 0:02:43]}  Nxe7 {[%clk 0:01:46]} 22. Rxe7 {[%clk 0:02:42]}  Rae8 {[%clk 0:01:42]} 23. Rc7 {[%clk 0:02:28]}  Rd8 {[%clk 0:01:33]} 0-1

[Event "January 2 Early 2024"]
[Site "https://www.chess.com"]
[Date "2024.01.02"]
[Round "7"]
[White "Sarana, Alexey"]
[Black "Pranav Anand"]
[Result "0-1"]
[Board "12"]
[TimeControl "180+1"]
[WhiteFideId "24133795"]
[BlackFideId "46626786"]
[WhiteElo "3036"]
[BlackElo "2918"]
[WhiteTeam "SRB"]
[BlackTeam "IND"]
[WhiteClock "0:00:13"]
[BlackClock "0:00:36"]

1. d4 {[%clk 0:02:58]}  Nf6 {[%clk 0:02:56]} 2. c4 {[%clk 0:02:59]}  e6 {[%clk 0:02:55]} 3. Nc3 {[%clk 0:02:59]}  d5 {[%clk 0:02:55]} 4. Bg5 {[%clk 0:02:59]}  Nbd7 {[%clk 0:02:52]} 5. e3 {[%clk 0:02:57]}  Be7 {[%clk 0:02:53]} 6. Qc2 {[%clk 0:02:52]}  O-O {[%clk 0:02:51]} 7. cxd5 {[%clk 0:02:52]}  exd5 {[%clk 0:02:51]} 8. Bd3 {[%clk 0:02:52]}  h6 {[%clk 0:02:48]} 9. Bf4 {[%clk 0:02:50]}  c5 {[%clk 0:02:46]} 10. Nf3 {[%clk 0:02:49]}  cxd4 {[%clk 0:02:36]} 11. Nxd4 {[%clk 0:02:48]}  Nc5 {[%clk 0:02:37]} 12. O-O {[%clk 0:02:48]}  Bd6 {[%clk 0:02:17]} 13. Bxd6 {[%clk 0:02:48]}  Qxd6 {[%clk 0:02:18]} 14. Rfd1 {[%clk 0:02:46]}  Ng4 {[%clk 0:02:15]} 15. Nf3 {[%clk 0:02:47]}  Be6 {[%clk 0:02:12]} 16. Nb5 {[%clk 0:02:12]}  Qe7 {[%clk 0:02:10]} 17. Rac1 {[%clk 0:02:07]}  Rfc8 {[%clk 0:02:00]} 18. Qe2 {[%clk 0:02:03]}  Nf6 {[%clk 0:01:56]} 19. Nbd4 {[%clk 0:02:03]}  Bd7 {[%clk 0:01:49]} 20. Bb1 {[%clk 0:02:02]}  Nce4 {[%clk 0:01:48]} 21. a3 {[%clk 0:02:01]}  a6 {[%clk 0:01:47]} 22. h3 {[%clk 0:02:01]}  Qd6 {[%clk 0:01:39]} 23. Qe1 {[%clk 0:02:01]}  a5 {[%clk 0:01:34]} 24. Rxc8+ {[%clk 0:02:01]}  Bxc8 {[%clk 0:01:33]} 25. Rc1 {[%clk 0:02:01]}  Bd7 {[%clk 0:01:33]} 26. Bd3 {[%clk 0:02:00]}  Qb6 {[%clk 0:01:32]} 27. Rc2 {[%clk 0:02:00]}  Ba4 {[%clk 0:01:31]} 28. b3 {[%clk 0:02:00]}  Bd7 {[%clk 0:01:24]} 29. Qc1 {[%clk 0:02:00]}  Qd8 {[%clk 0:01:17]} 30. Ne5 {[%clk 0:01:58]}  Be8 {[%clk 0:01:07]} 31. Rc7 {[%clk 0:01:57]}  Qd6 {[%clk 0:01:07]} 32. Nef3 {[%clk 0:01:49]}  Bc6 {[%clk 0:01:05]} 33. Nb5 {[%clk 0:01:49]}  Qc5 {[%clk 0:00:56]} 34. Qxc5 {[%clk 0:00:45]}  Nxc5 {[%clk 0:00:57]} 35. Be2 {[%clk 0:00:46]}  Ne6 {[%clk 0:00:57]} 36. Re7 {[%clk 0:00:41]}  Kf8 {[%clk 0:00:57]} 37. Rxe6 {[%clk 0:00:42]}  fxe6 {[%clk 0:00:58]} 38. Nbd4 {[%clk 0:00:43]}  Ke7 {[%clk 0:00:56]} 39. Ne5 {[%clk 0:00:43]}  Be8 {[%clk 0:00:56]} 40. f4 {[%clk 0:00:42]}  Rc8 {[%clk 0:00:55]} 41. Kf2 {[%clk 0:00:42]}  Ne4+ {[%clk 0:00:55]} 42. Ke1 {[%clk 0:00:42]}  Rc1+ {[%clk 0:00:55]} 43. Bd1 {[%clk 0:00:43]}  Nc3 {[%clk 0:00:51]} 44. Kd2 {[%clk 0:00:43]}  Rxd1+ {[%clk 0:00:49]} 45. Kxc3 {[%clk 0:00:43]}  Rg1 {[%clk 0:00:48]} 46. g4 {[%clk 0:00:42]}  Rg3 {[%clk 0:00:48]} 47. Kd3 {[%clk 0:00:37]}  Rxh3 {[%clk 0:00:48]} 48. b4 {[%clk 0:00:37]}  a4 {[%clk 0:00:46]} 49. Ndf3 {[%clk 0:00:34]}  Rh1 {[%clk 0:00:45]} 50. Kc3 {[%clk 0:00:33]}  Rb1 {[%clk 0:00:44]} 51. Nd4 {[%clk 0:00:34]}  Rc1+ {[%clk 0:00:42]} 52. Kd2 {[%clk 0:00:32]}  Ra1 {[%clk 0:00:42]} 53. Nc2 {[%clk 0:00:32]}  Rg1 {[%clk 0:00:43]} 54. Nd4 {[%clk 0:00:33]}  g6 {[%clk 0:00:43]} 55. b5 {[%clk 0:00:26]}  h5 {[%clk 0:00:42]} 56. Ke2 {[%clk 0:00:18]}  hxg4 {[%clk 0:00:36]} 57. Kf2 {[%clk 0:00:18]}  Ra1 {[%clk 0:00:36]} 58. Nxg4 {[%clk 0:00:19]}  Rxa3 {[%clk 0:00:36]} 59. Ke2 {[%clk 0:00:19]}  Rc3 {[%clk 0:00:35]} 60. Kd2 {[%clk 0:00:19]}  Rc8 {[%clk 0:00:36]} 61. Ne5 {[%clk 0:00:17]}  a3 {[%clk 0:00:36]} 62. Nc2 {[%clk 0:00:16]}  a2 {[%clk 0:00:36]} 63. b6 {[%clk 0:00:13]}  Rxc2+ {[%clk 0:00:36]} 0-1

[Event "January 2 Early 2024"]
[Site "https://www.chess.com"]
[Date "2024.01.02"]
[Round "7"]
[White "Bologan, Victor"]
[Black "Meier, Georg"]
[Result "0-1"]
[Board "14"]
[TimeControl "180+1"]
[WhiteFideId "13900048"]
[BlackFideId "4675789"]
[WhiteElo "2822"]
[BlackElo "3020"]
[WhiteTeam "MDA"]
[BlackTeam "URU"]
[WhiteClock "0:00:00"]
[BlackClock "0:00:04"]

1. e4 {[%clk 0:03:00]}  e6 {[%clk 0:03:00]} 2. d4 {[%clk 0:03:00]}  d5 {[%clk 0:03:00]} 3. exd5 {[%clk 0:03:00]}  exd5 {[%clk 0:03:00]} 4. Nf3 {[%clk 0:03:01]}  Nf6 {[%clk 0:02:59]} 5. Bd3 {[%clk 0:02:59]}  Bd6 {[%clk 0:02:59]} 6. Qe2+ {[%clk 0:02:57]}  Be7 {[%clk 0:02:59]} 7. O-O {[%clk 0:02:56]}  O-O {[%clk 0:02:59]} 8. h3 {[%clk 0:02:56]}  Re8 {[%clk 0:02:56]} 9. c3 {[%clk 0:02:55]}  Nc6 {[%clk 0:02:51]} 10. Qc2 {[%clk 0:02:52]}  h6 {[%clk 0:02:39]} 11. Bf4 {[%clk 0:02:49]}  Bd6 {[%clk 0:02:39]} 12. Bxd6 {[%clk 0:02:49]}  Qxd6 {[%clk 0:02:40]} 13. Nbd2 {[%clk 0:02:49]}  Bd7 {[%clk 0:02:38]} 14. b4 {[%clk 0:02:47]}  Re7 {[%clk 0:02:15]} 15. a4 {[%clk 0:02:45]}  Rae8 {[%clk 0:02:13]} 16. b5 {[%clk 0:02:45]}  Nd8 {[%clk 0:02:00]} 17. Ne5 {[%clk 0:02:45]}  c5 {[%clk 0:01:52]} 18. f4 {[%clk 0:02:34]}  Ne6 {[%clk 0:01:32]} 19. Qb2 {[%clk 0:02:26]}  Rc8 {[%clk 0:00:45]} 20. Bf5 {[%clk 0:02:08]}  g6 {[%clk 0:00:36]} 21. Bxe6 {[%clk 0:02:04]}  Bxe6 {[%clk 0:00:35]} 22. Nb3 {[%clk 0:02:02]}  Ne4 {[%clk 0:00:29]} 23. dxc5 {[%clk 0:01:54]}  Nxc5 {[%clk 0:00:28]} 24. Nd4 {[%clk 0:01:54]}  Ne4 {[%clk 0:00:26]} 25. Rac1 {[%clk 0:01:50]}  Rec7 {[%clk 0:00:26]} 26. Rf3 {[%clk 0:01:34]}  Bf5 {[%clk 0:00:25]} 27. g4 {[%clk 0:01:23]}  Bd7 {[%clk 0:00:23]} 28. Ne2 {[%clk 0:01:05]}  Be8 {[%clk 0:00:23]} 29. Nd3 {[%clk 0:00:52]}  f6 {[%clk 0:00:21]} 30. Nb4 {[%clk 0:00:51]}  Bf7 {[%clk 0:00:21]} 31. Rd1 {[%clk 0:00:51]}  a5 {[%clk 0:00:18]} 32. bxa6 {[%clk 0:00:45]}  bxa6 {[%clk 0:00:19]} 33. a5 {[%clk 0:00:41]}  Rc5 {[%clk 0:00:18]} 34. Qc2 {[%clk 0:00:34]}  Qe7 {[%clk 0:00:14]} 35. Qd3 {[%clk 0:00:32]}  Rxa5 {[%clk 0:00:14]} 36. Re3 {[%clk 0:00:27]}  Qc5 {[%clk 0:00:13]} 37. Qd4 {[%clk 0:00:27]}  Ra3 {[%clk 0:00:12]} 38. Nxd5 {[%clk 0:00:22]}  Qxd4 {[%clk 0:00:11]} 39. Rxd4 {[%clk 0:00:21]}  Bxd5 {[%clk 0:00:10]} 40. Rxd5 {[%clk 0:00:21]}  Nxc3 {[%clk 0:00:11]} 41. Nxc3 {[%clk 0:00:19]}  Raxc3 {[%clk 0:00:11]} 42. Rxc3 {[%clk 0:00:18]}  Rxc3 {[%clk 0:00:11]} 43. Rd6 {[%clk 0:00:19]}  Kf7 {[%clk 0:00:11]} 44. Rxa6 {[%clk 0:00:18]}  Rxh3 {[%clk 0:00:09]} 45. Kg2 {[%clk 0:00:18]}  Re3 {[%clk 0:00:10]} 46. Kf2 {[%clk 0:00:18]}  Re7 {[%clk 0:00:08]} 47. Kf3 {[%clk 0:00:17]}  Kg7 {[%clk 0:00:09]} 48. Rb6 {[%clk 0:00:16]}  Ra7 {[%clk 0:00:09]} 49. Rb3 {[%clk 0:00:15]}  Kf7 {[%clk 0:00:09]} 50. Kg3 {[%clk 0:00:15]}  Rc7 {[%clk 0:00:08]} 51. Ra3 {[%clk 0:00:15]}  Rd7 {[%clk 0:00:09]} 52. Rb3 {[%clk 0:00:15]}  Ke6 {[%clk 0:00:09]} 53. Rb6+ {[%clk 0:00:15]}  Rd6 {[%clk 0:00:09]} 54. Rb3 {[%clk 0:00:15]}  f5 {[%clk 0:00:10]} 55. Ra3 {[%clk 0:00:13]}  Kf6 {[%clk 0:00:09]} 56. Rb3 {[%clk 0:00:13]}  Ra6 {[%clk 0:00:09]} 57. Rc3 {[%clk 0:00:13]}  fxg4 {[%clk 0:00:07]} 58. Kxg4 {[%clk 0:00:12]}  h5+ {[%clk 0:00:06]} 59. Kg3 {[%clk 0:00:12]}  Ra1 {[%clk 0:00:07]} 60. Rc6+ {[%clk 0:00:12]}  Kg7 {[%clk 0:00:07]} 61. Rb6 {[%clk 0:00:11]}  Rg1+ {[%clk 0:00:07]} 62. Kf2 {[%clk 0:00:10]}  Rg4 {[%clk 0:00:06]} 63. Kf3 {[%clk 0:00:10]}  Rg1 {[%clk 0:00:06]} 64. Kf2 {[%clk 0:00:11]}  Rc1 {[%clk 0:00:06]} 65. Kf3 {[%clk 0:00:11]}  Rc5 {[%clk 0:00:06]} 66. Kg3 {[%clk 0:00:10]}  Ra5 {[%clk 0:00:06]} 67. Kf3 {[%clk 0:00:10]}  Rf5 {[%clk 0:00:07]} 68. Kg3 {[%clk 0:00:10]}  Rf6 {[%clk 0:00:07]} 69. Rb5 {[%clk 0:00:10]}  Kh6 {[%clk 0:00:07]} 70. Ra5 {[%clk 0:00:09]}  Rc6 {[%clk 0:00:07]} 71. Rb5 {[%clk 0:00:09]}  Rc3+ {[%clk 0:00:07]} 72. Kg2 {[%clk 0:00:09]}  Kg7 {[%clk 0:00:07]} 73. Ra5 {[%clk 0:00:08]}  Re3 {[%clk 0:00:06]} 74. Rb5 {[%clk 0:00:09]}  Kf6 {[%clk 0:00:06]} 75. Ra5 {[%clk 0:00:09]}  h4 {[%clk 0:00:05]} 76. Rb5 {[%clk 0:00:06]}  Rg3+ {[%clk 0:00:05]} 77. Kf2 {[%clk 0:00:05]}  Ra3 {[%clk 0:00:04]} 78. Kg2 {[%clk 0:00:05]}  Kg7 {[%clk 0:00:04]} 79. Kh2 {[%clk 0:00:03]}  Kh6 {[%clk 0:00:04]} 80. Kg2 {[%clk 0:00:01]}  Kg7 {[%clk 0:00:04]} 81. Kh2 {[%clk 0:00:00]}  Rf3 {[%clk 0:00:04]} 0-1

[Event "January 2 Early 2024"]
[Site "https://www.chess.com"]
[Date "2024.01.02"]
[Round "7"]
[White "Bindrich, Falko"]
[Black "Svane, Rasmus"]
[Result "1-0"]
[Board "15"]
[TimeControl "180+1"]
[WhiteFideId "4676670"]
[BlackFideId "4657101"]
[WhiteElo "2796"]
[BlackElo "3003"]
[WhiteTeam "GER"]
[BlackTeam "GER"]
[WhiteClock "0:00:10"]
[BlackClock "0:00:00"]

1. d4 {[%clk 0:03:00]}  Nf6 {[%clk 0:02:57]} 2. Nf3 {[%clk 0:02:55]}  d5 {[%clk 0:02:56]} 3. Bf4 {[%clk 0:02:55]}  e6 {[%clk 0:02:52]} 4. e3 {[%clk 0:02:55]}  Bd6 {[%clk 0:02:53]} 5. Bd3 {[%clk 0:02:56]}  O-O {[%clk 0:02:50]} 6. O-O {[%clk 0:02:56]}  c5 {[%clk 0:02:46]} 7. c3 {[%clk 0:02:54]}  Bxf4 {[%clk 0:02:36]} 8. exf4 {[%clk 0:02:54]}  Qb6 {[%clk 0:02:37]} 9. Qe2 {[%clk 0:02:43]}  cxd4 {[%clk 0:02:33]} 10. Nxd4 {[%clk 0:02:20]}  Nc6 {[%clk 0:02:32]} 11. Nf3 {[%clk 0:01:54]}  Bd7 {[%clk 0:02:27]} 12. Re1 {[%clk 0:01:55]}  d4 {[%clk 0:02:18]} 13. c4 {[%clk 0:01:48]}  a5 {[%clk 0:02:17]} 14. Ne5 {[%clk 0:01:43]}  Rfd8 {[%clk 0:02:07]} 15. Nd2 {[%clk 0:01:33]}  Be8 {[%clk 0:01:32]} 16. Ndf3 {[%clk 0:01:32]}  h6 {[%clk 0:01:30]} 17. Rac1 {[%clk 0:01:26]}  Rac8 {[%clk 0:01:29]} 18. c5 {[%clk 0:01:20]}  Qa7 {[%clk 0:01:28]} 19. a3 {[%clk 0:00:59]}  a4 {[%clk 0:01:23]} 20. g3 {[%clk 0:00:44]}  Ne7 {[%clk 0:01:21]} 21. Bb5 {[%clk 0:00:38]}  Rxc5 {[%clk 0:00:37]} 22. Bxe8 {[%clk 0:00:38]}  Rxe8 {[%clk 0:00:36]} 23. Rxc5 {[%clk 0:00:30]}  Qxc5 {[%clk 0:00:37]} 24. Nxf7 {[%clk 0:00:31]}  Kxf7 {[%clk 0:00:37]} 25. Qxe6+ {[%clk 0:00:31]}  Kf8 {[%clk 0:00:20]} 26. Ne5 {[%clk 0:00:31]}  Qd5 {[%clk 0:00:20]} 27. Qb6 {[%clk 0:00:30]}  d3 {[%clk 0:00:19]} 28. Rd1 {[%clk 0:00:30]}  d2 {[%clk 0:00:19]} 29. Qb4 {[%clk 0:00:30]}  Ne4 {[%clk 0:00:15]} 30. Qxa4 {[%clk 0:00:20]}  Rd8 {[%clk 0:00:14]} 31. Qb4 {[%clk 0:00:19]}  Ke8 {[%clk 0:00:12]} 32. h4 {[%clk 0:00:17]}  Nf5 {[%clk 0:00:11]} 33. Qa4+ {[%clk 0:00:17]}  Kf8 {[%clk 0:00:11]} 34. Qb4+ {[%clk 0:00:15]}  Kg8 {[%clk 0:00:11]} 35. Kh2 {[%clk 0:00:14]}  Nd4 {[%clk 0:00:11]} 36. f3 {[%clk 0:00:13]}  Nf6 {[%clk 0:00:05]} 37. Rxd2 {[%clk 0:00:13]}  Qxe5 {[%clk 0:00:02]} 38. fxe5 {[%clk 0:00:11]}  Nxf3+ {[%clk 0:00:02]} 39. Kh3 {[%clk 0:00:10]}  Ng1+ {[%clk 0:00:00]} 40. Kg2 {[%clk 0:00:10]} 1-0

[Event "January 2 Early 2024"]
[Site "https://www.chess.com"]
[Date "2024.01.02"]
[Round "7"]
[White "Makarian, Rudik"]
[Black "Zou, Chen"]
[Result "1/2-1/2"]
[Board "17"]
[TimeControl "180+1"]
[WhiteFideId "44105681"]
[BlackFideId "8610959"]
[WhiteElo "3030"]
[BlackElo "2771"]
[WhiteTeam "FID"]
[BlackTeam "CHN"]
[WhiteClock "0:00:44"]
[BlackClock "0:00:44"]

1. d4 {[%clk 0:03:00]}  d5 {[%clk 0:02:56]} 2. c4 {[%clk 0:03:00]}  e6 {[%clk 0:02:57]} 3. Nf3 {[%clk 0:03:01]}  Nf6 {[%clk 0:02:57]} 4. Nc3 {[%clk 0:03:01]}  Be7 {[%clk 0:02:53]} 5. Bf4 {[%clk 0:03:01]}  O-O {[%clk 0:02:53]} 6. e3 {[%clk 0:03:02]}  Nbd7 {[%clk 0:02:44]} 7. c5 {[%clk 0:03:00]}  Nh5 {[%clk 0:02:39]} 8. Bd3 {[%clk 0:03:00]}  Nxf4 {[%clk 0:02:39]} 9. exf4 {[%clk 0:03:01]}  c6 {[%clk 0:02:39]} 10. O-O {[%clk 0:03:00]}  b6 {[%clk 0:02:39]} 11. b4 {[%clk 0:03:00]}  a5 {[%clk 0:02:40]} 12. a3 {[%clk 0:03:01]}  Ba6 {[%clk 0:02:38]} 13. Bxa6 {[%clk 0:03:01]}  Rxa6 {[%clk 0:02:39]} 14. Qd3 {[%clk 0:03:01]}  Qa8 {[%clk 0:02:30]} 15. b5 {[%clk 0:03:01]}  cxb5 {[%clk 0:02:30]} 16. Qxb5 {[%clk 0:03:01]}  Ra7 {[%clk 0:02:29]} 17. cxb6 {[%clk 0:02:43]}  Nxb6 {[%clk 0:02:28]} 18. Qd3 {[%clk 0:02:29]}  g6 {[%clk 0:02:13]} 19. Nb5 {[%clk 0:02:25]}  Rb7 {[%clk 0:02:12]} 20. Ne5 {[%clk 0:02:22]}  Nc4 {[%clk 0:01:50]} 21. a4 {[%clk 0:02:22]}  Nxe5 {[%clk 0:01:49]} 22. fxe5 {[%clk 0:02:22]}  Rc8 {[%clk 0:01:46]} 23. Rac1 {[%clk 0:02:20]}  Rbb8 {[%clk 0:01:46]} 24. g3 {[%clk 0:01:59]}  Rxc1 {[%clk 0:01:41]} 25. Rxc1 {[%clk 0:01:59]}  Rc8 {[%clk 0:01:42]} 26. Rxc8+ {[%clk 0:01:59]}  Qxc8 {[%clk 0:01:43]} 27. Qc3 {[%clk 0:01:59]}  Qxc3 {[%clk 0:01:25]} 28. Nxc3 {[%clk 0:02:00]}  Bd8 {[%clk 0:01:25]} 29. Nb5 {[%clk 0:01:58]}  Bb6 {[%clk 0:01:24]} 30. Kg2 {[%clk 0:01:53]}  h5 {[%clk 0:01:21]} 31. Kf3 {[%clk 0:01:48]}  Kg7 {[%clk 0:01:21]} 32. Ke3 {[%clk 0:01:47]}  g5 {[%clk 0:01:13]} 33. h3 {[%clk 0:01:45]}  Kg6 {[%clk 0:01:11]} 34. g4 {[%clk 0:01:44]}  hxg4 {[%clk 0:01:10]} 35. hxg4 {[%clk 0:01:45]}  f6 {[%clk 0:01:10]} 36. exf6 {[%clk 0:01:22]}  Kxf6 {[%clk 0:01:11]} 37. f4 {[%clk 0:01:20]}  Kg6 {[%clk 0:00:59]} 38. Kf3 {[%clk 0:01:13]}  Kf6 {[%clk 0:00:53]} 39. Ke3 {[%clk 0:01:12]}  Kg6 {[%clk 0:00:53]} 40. fxg5 {[%clk 0:01:10]}  e5 {[%clk 0:00:44]} 41. Kd3 {[%clk 0:00:47]}  Bxd4 {[%clk 0:00:40]} 42. Nxd4 {[%clk 0:00:37]}  exd4 {[%clk 0:00:41]} 43. Kxd4 {[%clk 0:00:37]}  Kxg5 {[%clk 0:00:41]} 44. Kxd5 {[%clk 0:00:38]}  Kxg4 {[%clk 0:00:41]} 45. Kc6 {[%clk 0:00:39]}  Kf5 {[%clk 0:00:42]} 46. Kb6 {[%clk 0:00:40]}  Ke6 {[%clk 0:00:42]} 47. Kxa5 {[%clk 0:00:41]}  Kd7 {[%clk 0:00:42]} 48. Kb6 {[%clk 0:00:42]}  Kc8 {[%clk 0:00:43]} 49. a5 {[%clk 0:00:43]}  Kb8 {[%clk 0:00:43]} 50. a6 {[%clk 0:00:43]}  Ka8 {[%clk 0:00:44]} 51. a7 {[%clk 0:00:44]} 1/2-1/2